fUSD/lending_fUSD_20240909
["ID","MTS","AMOUNT","RATE_DAILY","PERIOD"]
[337579847,1725845438933,-4406.81969989,0.00014898,2]
[337579848,1725845438943,-4406.81969989,0.00014899,2]
[337579849,1725845438952,-4406.81969989,0.000149,2]
[337579850,1725845438962,-211.88152153,0.000149,2]
[337579851,1725845438971,-208.29254276,0.000149,2]
[337579852,1725845438981,-1339.6804815,0.000149,2]
[337579853,1725845438990,-420.0,0.00014904,2]
[337579854,1725845439000,-1500.0,0.00014944,2]
[337579855,1725845439010,-503.81040486,0.00014973,2]
[337579856,1725845439019,-38664.0369911,0.0001498,3]
[337579857,1725845439029,-909.54,0.0001498,2]
[337579858,1725845439038,-909.54,0.0001498,2]
[337579859,1725845439047,-909.54,0.0001498,2]
[337579860,1725845439057,-9666.00924777,0.00014983,3]
[337579861,1725845439067,-9666.00924777,0.0001499,3]
[337579862,1725845439076,-222318.212699,0.0001499,3]
[337579863,1725845439086,-13576.6974856,0.0001499,3]
[337579864,1725845439095,-909.54,0.0001499,2]
[337579865,1725845439105,-909.54,0.0001499,2]
[337579866,1725845439114,-158.16,0.0001499,2]
[337579867,1725845439123,-6336.6712746,0.00014993,2]
[337579868,1725845439132,-9403.2013022,0.00014993,2]
[337579869,1725845439143,-236.2473134,0.00014993,2]
[337579870,1725845439153,-1538.5624536,0.00014993,2]
[337579871,1725845439162,-254.14454273,0.00014999,2]
[337579872,1725845439172,-14566.122907,0.00015,2]
[337579873,1725845439181,-492408.55279704,0.00015,2]
[337579882,1725845441521,-372.46945308,0.00015,2]
[337579883,1725845441539,-553.51,0.00015,2]
[337579884,1725845441575,-22160.90429387,0.00015,2]
[337579885,1725845441599,-1076.0,0.000138,2]
[337579886,1725845441610,-8232.0,0.000138,2]
[337579887,1725845441619,-104069.90411632,0.00015,2]
[337579891,1725845442953,-153.69911714,0.0001489,2]
[337579892,1725845442963,-163.88366572,0.00015,2]
[337579894,1725845443073,-29778.88781335,0.00015,2]
[337579895,1725845443085,-326183.56663789,0.00015,2]
[337579896,1725845443096,-571240.3329349,0.00015,2]
[337579897,1725845443107,-839.68473191,0.00015,2]
[337579898,1725845443118,-7490.84286578,0.00015,2]
[337579899,1725845443187,-8500.0,0.00015,2]
[337579900,1725845443910,-10816.61358908,0.00015,2]
[337579909,1725845446348,-300.0,0.00014192,2]
[337579910,1725845446363,-148.48,0.00014192,2]
[337579911,1725845446491,-151.52,0.00014192,2]
[337579912,1725845446507,-455.95,0.00015,2]
[337579922,1725845536209,152.21,0.00010959,2]
[337579924,1725845766613,1000.0,0.00028,120]
[337579925,1725845837321,1000.0,0.00028,120]
[337579926,1725845845957,364.7,0.00012084,2]
[337579948,1725846292474,150.65,0.00010849,2]
[337579989,1725846457840,472.52,0.00011618,2]
[337579999,1725846632381,-299.02274621,0.00013,2]
[337580000,1725846632390,-121.79325379,0.00013504,2]
[337580001,1725846632402,-128.20674621,0.00013504,2]
[337580002,1725846632412,-200.0,0.00013522,2]
[337580003,1725846632422,-435.95259239,0.00013535,2]
[337580005,1725846632569,-198.04740761,0.00013535,2]
[337580006,1725846632579,-3641.81,0.00013536,2]
[337580008,1725846632590,-1330.0,0.00013538,2]
[337580010,1725846632599,-747.65,0.00013543,2]
[337580011,1725846632610,-230.65,0.00013553,2]
[337580012,1725846632620,-150.1,0.00013561,2]
[337580013,1725846632630,-242.4,0.00013577,2]
[337580014,1725846632640,-374.9,0.00013585,2]
[337580015,1725846632650,-250.0,0.00013585,2]
[337580016,1725846632660,-163.69,0.0001366,2]
[337580017,1725846632670,-150.0,0.00013671,2]
[337580018,1725846632680,-300.0,0.00013698,2]
[337580019,1725846632690,-2751.0,0.00013699,2]
[337580020,1725846632699,-177.25,0.00013699,2]
[337580021,1725846632709,-2013.81959233,0.00013699,2]
[337580022,1725846632721,-326.29040767,0.00013699,2]
[337580023,1725846632732,-404.92366735,0.00013699,2]
[337580043,1725846638394,-38.79633265,0.00013699,2]
[337580044,1725846638404,-200.0,0.00013699,2]
[337580045,1725846638414,-250.0,0.00013717,2]
[337580046,1725846638423,-466.47424613,0.00013717,2]
[337580047,1725846638434,-4678.23575387,0.00013717,2]
[337580048,1725846638444,-800.0,0.00013732,2]
[337580049,1725846638453,-198.82,0.00013792,2]
[337580050,1725846638463,-499.99,0.00013792,2]
[337580051,1725846638473,-624.0,0.000138,2]
[337580052,1725846638483,-1547.0,0.000138,2]
[337580053,1725846638493,-1261.0,0.000138,2]
[337580054,1725846638503,-447.0,0.000138,2]
[337580055,1725846638512,-557.0,0.000138,2]
[337580056,1725846638522,-811.0,0.000138,2]
[337580057,1725846638531,-936.399,0.000138,2]
[337580058,1725846638540,-553.0,0.000138,2]
[337580059,1725846638550,-1902.209,0.000138,2]
[337580060,1725846638559,-248.0,0.000138,2]
[337580061,1725846638569,-1119.0,0.000138,2]
[337580062,1725846638579,-3349.188,0.000138,2]
[337580063,1725846638589,-588.138,0.000138,2]
[337580064,1725846638598,-3595.617,0.000138,2]
[337580065,1725846638608,-685.427,0.000138,2]
[337580066,1725846638618,-150.831,0.000138,2]
[337580067,1725846638628,-580.546,0.000138,2]
[337580068,1725846638638,-512.433,0.000138,2]
[337580069,1725846638648,-472.52,0.00013882,2]
[337580070,1725846638657,-169.35,0.00013991,2]
[337580071,1725846638667,-2957.94,0.000141,2]
[337580072,1725846638676,-150.0,0.00014178,2]
[337580073,1725846638686,-357.5,0.00014178,2]
[337580074,1725846638695,-150.0,0.00014178,2]
[337580075,1725846638705,-150.0,0.00014178,2]
[337580076,1725846638715,-357.5,0.00014178,2]
[337580077,1725846638724,-150.0,0.00014178,2]
[337580078,1725846638735,-357.14,0.00014178,2]
[337580079,1725846638744,-537.51,0.00014192,2]
[337580080,1725846638754,-581.17,0.00014192,2]
[337580081,1725846638763,-357.5,0.00014278,2]
[337580082,1725846638773,-301.12,0.00014278,2]
[337580083,1725846638783,-151.47,0.00014278,2]
[337580084,1725846638793,-154.72,0.00014278,2]
[337580085,1725846638803,-150.41,0.00014278,2]
[337580086,1725846638813,-427.61,0.00014278,2]
[337580087,1725846638825,-164.75,0.00014278,2]
[337580088,1725846638840,-198.82,0.00014481,2]
[337580089,1725846638851,-920.0,0.000145,2]
[337580090,1725846638860,-359.0,0.000145,2]
[337580091,1725846638870,-1500.0,0.00014725,2]
[337580092,1725846638880,-834.86897303,0.000148,2]
[337580093,1725846638889,-888.92003923,0.000148,2]
[337580094,1725846638900,-487.03368496,0.00014801,2]
[337580095,1725846638909,-6510.69922941,0.0001484,2]
[337580096,1725846638919,-1685.41532699,0.0001485,2]
[337580097,1725846638929,-955.6214,0.0001485,2]
[337580098,1725846638939,-1500.0,0.00014853,2]
[337580099,1725846638948,-307.256,0.0001489,2]
[337580100,1725846638958,-152.4507757,0.0001489,2]
[337580101,1725846638968,-222.4573,0.0001489,2]
[337580102,1725846638978,-2697.86301916,0.00014892,2]
[337580103,1725846638988,-2697.86301916,0.00014893,2]
[337580104,1725846638997,-152.45077568,0.00014893,2]
[337580105,1725846639006,-2697.86301916,0.00014894,2]
[337580106,1725846639016,-2697.86301916,0.00014896,2]
[337580107,1725846639025,-2697.86301916,0.00014897,2]
[337580108,1725846639035,-152.45077568,0.00014897,2]
[337580109,1725846639044,-2697.86301916,0.00014898,2]
[337580110,1725846639054,-2697.86301916,0.00014899,2]
[337580111,1725846639064,-201.6792,0.000149,2]
[337580112,1725846639074,-177.84766596,0.000149,2]
[337580113,1725846639083,-2697.86301916,0.000149,2]
[337580114,1725846639093,-247.91721937,0.000149,2]
[337580115,1725846639102,-152.45077568,0.000149,2]
[337580116,1725846639112,-322.73333735,0.000149,2]
[337580117,1725846639121,-500.0,0.00014973,2]
[337580118,1725846639131,-18965.3180996,0.0001498,3]
[337580119,1725846639141,-3605.13,0.0001498,2]
[337580120,1725846639150,-3605.13,0.0001498,2]
[337580121,1725846639160,-9482.65904981,0.00014983,3]
[337580122,1725846639170,-9482.65904981,0.0001499,3]
[337580123,1725846639179,-237066.476245,0.0001499,3]
[337580124,1725846639189,-34264.6616982,0.0001499,3]
[337580125,1725846639199,-151.25925299,0.0001499,2]
[337580126,1725846639210,-151.25925299,0.0001499,2]
[337580127,1725846639220,-151.7,0.0001499,2]
[337580128,1725846639232,-2422.0864156,0.00014993,2]
[337580129,1725846639242,-597.5212863,0.00014993,2]
[337580130,1725846639252,-153.01312191,0.00014993,2]
[337580131,1725846639262,-265.718476,0.00014993,2]
[337580132,1725846639272,-178.787695,0.00014993,2]
[337580133,1725846639283,-273.2092125,0.00014993,2]
[337580134,1725846639292,-859.4381248,0.00014993,2]
[337580135,1725846639302,-177.17247064,0.00014998,2]
[337580136,1725846639311,-7283.0614535,0.00015,2]
[337580137,1725846639321,-24254.25551261,0.00015,2]
[337580138,1725846639334,-9578.24456861,0.00015,2]
[337580139,1725846639345,-364.79860236,0.00015,2]
[337580140,1725846639357,-491.77976376,0.00015,2]
[337580141,1725846639369,-10340.0,0.00015,2]
[337580143,1725846640344,-498.96254894,0.00015,2]
[337580144,1725846640355,-557.1507,0.00015,2]
[337580168,1725846643900,-502.11293267,0.00014973,2]
[337580169,1725846643912,-756.51807313,0.00015,2]
[337580170,1725846643926,-914798.67363774,0.00015,2]
[337580171,1725846643955,-448.63999999,0.00015,2]
[337580174,1725846646450,-933.17494973,0.0001498,2]
[337580175,1725846646462,-2671.95505027,0.0001498,2]
[337580176,1725846646472,-3605.13,0.0001499,2]
[337580178,1725846646482,-3605.13,0.0001499,2]
[337580180,1725846646491,-16615.12804997,0.00015,2]
[337580182,1725846646503,-288514.51536889,0.00015,2]
[337580189,1725846648163,-115634.93061844,0.00015,2]
[337580190,1725846648177,-203500.000005,0.00015,2]
[337580191,1725846648189,-1692.13433811,0.00015,2]
[337580192,1725846648200,-376.87925389,0.00015,2]
[337580193,1725846648212,-617.64,0.00015,2]
[337580194,1725846648223,-564.2637225,0.00015,2]
[337580196,1725847132121,3500.0,0.00028,120]
[337580197,1725847146307,5000.0,0.00028,120]
[337580198,1725847154775,5000.0,0.00028,120]
[337580200,1725847228556,456.91,0.00012022,2]
[337580202,1725847372945,9000.0,0.00028,120]
[337580203,1725847485589,9000.0,0.00028,120]
[337580204,1725847517937,-300.0,0.00013501,2]
[337580205,1725847517958,-554.597,0.00013502,2]
[337580206,1725847517979,-931.0,0.00013502,2]
[337580207,1725847518001,-811.0,0.00013502,2]
[337580208,1725847518023,-553.0,0.00013502,2]
[337580209,1725847518046,-1850.403,0.00013502,2]
[337580210,1725847521932,-49.597,0.00013502,2]
[337580211,1725847521954,-3343.0,0.00013502,2]
[337580212,1725847521975,-248.0,0.00013502,2]
[337580213,1725847521996,-1119.0,0.00013502,2]
[337580214,1725847522017,-177.25,0.00013699,2]
[337580215,1725847522039,-63.153,0.000138,2]
[337580216,1725847533037,-1483.847,0.000138,2]
[337580217,1725847533059,-447.0,0.000138,2]
[337580218,1725847533080,-150.0,0.000138,2]
[337580219,1725847533102,-624.0,0.000138,2]
[337580220,1725847533124,-495.153,0.000138,2]
[337580233,1725847839735,434.06,0.00011765,2]
[337580234,1725847840831,-150.0,0.0001368,2]
[337580235,1725847840849,-177.25,0.00013699,2]
[337580236,1725847840864,-198.82,0.00013796,2]
[337580237,1725847840880,-200.0,0.00013799,2]
[337580238,1725847840896,-765.847,0.000138,2]
[337580240,1725847840911,-1739.55,0.00013804,2]
[337580241,1725847840926,-1000.0,0.00013808,2]
[337580242,1725847840941,-373.82,0.0001382,2]
[337580243,1725847840956,-169.35,0.00013832,2]
[337580244,1725847840973,-250.0,0.00013835,2]
[337580245,1725847840989,-250.0,0.0001385,2]
[337580246,1725847841005,-250.0,0.00013882,2]
[337580247,1725847841021,-434.06,0.00014029,2]
[337580248,1725847841036,-2662.15,0.000141,2]
[337580251,1725847841050,-499.99,0.00014286,2]
[337580254,1725847841065,-427.16,0.000143,2]
[337580256,1725847841080,-167.422914,0.00014339,2]
[337580259,1725847841094,-1475.76,0.000144,2]
[337580261,1725847841110,-60783.27,0.00014521,2]
[337580264,1725847841124,-720.0,0.000148,2]
[337580266,1725847841138,-216.8681,0.0001489,2]
[337580269,1725847841152,-3149.0254,0.0001489,2]
[337580271,1725847841168,-406.812,0.0001489,2]
[337580274,1725847841182,-5700.4631,0.0001489,2]
[337580276,1725847841196,-539.57260384,0.00014893,2]
[337580279,1725847841211,-539.57260384,0.00014894,2]
[337580281,1725847841226,-245.805,0.00014894,2]
[337580284,1725847841242,-539.57260384,0.00014895,2]
[337580286,1725847841256,-539.57260384,0.00014895,2]
[337580289,1725847841270,-200.0,0.00014895,2]
[337580291,1725847841287,-539.57260384,0.00014896,2]
[337580294,1725847841302,-539.57260384,0.00014897,2]
[337580297,1725847841318,-539.57260384,0.00014898,2]
[337580299,1725847841332,-539.57260384,0.00014898,2]
[337580302,1725847841346,-539.57260384,0.00014899,2]
[337580304,1725847841367,-156.91763739,0.000149,2]
[337580307,1725847841382,-224.1268,0.000149,2]
[337580309,1725847841396,-7500.0,0.000149,2]
[337580311,1725847841410,-539.57260384,0.000149,2]
[337580314,1725847841424,-331.23165035,0.000149,2]
[337580317,1725847841439,-30376.4502525,0.0001498,3]
[337580319,1725847841453,-7594.11256312,0.0001499,3]
[337580322,1725847841468,-205041.039204,0.0001499,3]
[337580324,1725847841483,-250378.757396,0.0001499,3]
[337580327,1725847841497,-3661.43504442,0.00015,2]
[337580329,1725847841511,-3758002.95438133,0.00015,2]
[337580354,1725847841743,-29.00601737,0.00015,2]
[337580405,1725847862269,159.04,0.00010959,2]
[337580409,1725848349208,422.3,0.0001194,2]
[337580410,1725848378501,152.21,0.00010959,2]
[337580411,1725848387580,181.27,0.00015,30]
[337580412,1725848529083,4857.95706842,0.00028,120]
[337580413,1725848665329,160.27,0.000125,2]
[337580414,1725848756487,164.19208924,6.94e-05,2]
[337580416,1725848806513,-151.40216021,0.00013488,2]
[337580417,1725848806534,-800.0,0.00013513,2]
[337580418,1725848806559,-174.05,0.00013581,2]
[337580419,1725848806579,-174.05,0.00013615,2]
[337580420,1725848806602,-174.05,0.00013649,2]
[337580421,1725848806625,-171.58121715,0.00013668,2]
[337580422,1725848806645,-150.0,0.00013687,2]
[337580423,1725848806664,-250.0,0.00013695,2]
[337580424,1725848806683,-177.27,0.00013699,2]
[337580425,1725848806704,-300.0,0.00013699,2]
[337580426,1725848806723,-1250.0,0.000137,2]
[337580427,1725848806744,-1327.59662264,0.000137,2]
[337580443,1725848982703,358.76,0.00025,60]
[337580450,1725849031668,-571.54560218,0.00013396,2]
[337580451,1725849031678,-591.0,0.00013427,2]
[337580452,1725849031691,-255.1632197,0.00013496,2]
[337580454,1725849031703,-120.1867803,0.00013496,2]
[337580456,1725849031712,-152.01,0.0001362,2]
[337580458,1725849031722,-250.0,0.0001362,2]
[337580460,1725849031731,-198.82,0.00013699,2]
[337580462,1725849031740,-144.29939099,0.00013704,2]
[337580464,1725849031752,-5.70060901,0.00013704,2]
[337580466,1725849031761,-1256.55036025,0.00013705,2]
[337580467,1725849031773,-307.8334,0.00013705,2]
[337580468,1725849031789,-600.0,0.00013705,2]
[337580469,1725849031800,-2972.75435249,0.00013705,2]
[337580470,1725849031811,-1390.89940899,0.00013705,2]
[337580471,1725849031822,-1752.96961553,0.00013705,2]
[337580472,1725849031834,-587.36780626,0.00013705,2]
[337580473,1725849031844,-464.61,0.00013705,2]
[337580474,1725849031853,-23900.0,0.00013705,2]
[337580475,1725849031863,-173.79,0.00013706,2]
[337580476,1725849031872,-200.0,0.00013706,2]
[337580477,1725849031882,-2565.65,0.00013768,2]
[337580478,1725849031892,-182.04,0.00013768,2]
[337580479,1725849031902,-10958.19186672,0.0001379,2]
[337580480,1725849031911,-499.99,0.00013799,2]
[337580481,1725849031921,-1904.431,0.000138,2]
[337580482,1725849031930,-553.0,0.000138,2]
[337580483,1725849031940,-270.276,0.000138,2]
[337580484,1725849031949,-807.0,0.000138,2]
[337580485,1725849031959,-248.373,0.000138,2]
[337580486,1725849031968,-1119.0,0.000138,2]
[337580487,1725849031978,-3350.45,0.000138,2]
[337580488,1725849031987,-1261.0,0.000138,2]
[337580489,1725849031996,-624.0,0.000138,2]
[337580490,1725849032005,-447.0,0.000138,2]
[337580491,1725849032014,-1547.0,0.000138,2]
[337580492,1725849032024,-150.0,0.000138,2]
[337580493,1725849032038,-168.31,0.00013822,2]
[337580495,1725849032048,-200.0,0.00013916,2]
[337580496,1725849032057,-200.0,0.00013973,2]
[337580498,1725849032067,-422.3,0.00014204,2]
[337580500,1725849032076,-412.35,0.000143,2]
[337580501,1725849032086,-2395.93,0.000145,2]
[337580502,1725849032096,-6424.083632,0.0001468,2]
[337580503,1725849032106,-150.0,0.00014737,2]
[337580504,1725849032116,-416.96850081,0.0001474,2]
[337580505,1725849032125,-168.31,0.00014744,2]
[337580506,1725849032136,-150.0,0.00014745,2]
[337580507,1725849032145,-1500.0,0.00014751,2]
[337580508,1725849032155,-3149.31533307,0.000148,2]
[337580509,1725849032164,-150.0,0.00014805,2]
[337580510,1725849032173,-1500.0,0.00014807,2]
[337580511,1725849032183,-178.80864234,0.00014813,2]
[337580512,1725849032193,-258.39,0.00014856,2]
[337580513,1725849032202,-359.51789329,0.00014881,2]
[337580514,1725849032212,-609.25405349,0.00014889,2]
[337580515,1725849032221,-247.3215,0.0001489,2]
[337580516,1725849032230,-1000.0,0.0001489,2]
[337580517,1725849032240,-4659.8302,0.0001489,2]
[337580518,1725849032250,-2513.7107,0.0001489,2]
[337580519,1725849032259,-1177.2252,0.0001489,2]
[337580520,1725849032268,-2500.0,0.0001489,2]
[337580521,1725849032278,-3950.9637,0.0001489,2]
[337580522,1725849032291,-609.25405342,0.0001489,2]
[337580523,1725849032301,-609.25405342,0.00014891,2]
[337580524,1725849032311,-609.25405342,0.00014893,2]
[337580525,1725849032320,-609.25405342,0.00014894,2]
[337580526,1725849032330,-196.644,0.00014895,2]
[337580527,1725849032340,-609.25405342,0.00014895,2]
[337580528,1725849032350,-609.25405342,0.00014896,2]
[337580529,1725849032359,-609.25405342,0.00014898,2]
[337580530,1725849032369,-609.25405342,0.00014899,2]
[337580531,1725849032395,-500.0,0.000149,2]
[337580532,1725849032414,-2331.1737037,0.000149,2]
[337580533,1725849032432,-1154.908,0.000149,2]
[337580534,1725849032453,-500.0,0.000149,2]
[337580535,1725849032471,-500.0,0.000149,2]
[337580536,1725849032490,-500.0,0.000149,2]
[337580537,1725849032507,-511.28740253,0.000149,2]
[337580538,1725849032523,-362.06086023,0.000149,2]
[337580539,1725849032542,-2500.0,0.000149,2]
[337580540,1725849032564,-157.46541379,0.000149,2]
[337580541,1725849032578,-609.25405342,0.000149,2]
[337580542,1725849032595,-150.65235778,0.00014929,2]
[337580543,1725849032610,-150.0,0.00014951,2]
[337580544,1725849032630,-444.3584,0.00014959,2]
[337580545,1725849032643,-501.9743398,0.00014973,2]
[337580546,1725849032670,-500.73113133,0.00014973,2]
[337580547,1725849032688,-503.8626189,0.00014973,2]
[337580548,1725849032703,-502.08720999,0.00014973,2]
[337580549,1725849032718,-396.0,0.00014973,2]
[337580550,1725849032734,-1676.08726005,0.0001498,2]
[337580551,1725849032750,-500.0,0.00014989,2]
[337580552,1725849032767,-500.0,0.00014989,2]
[337580553,1725849032782,-500.0,0.00014989,2]
[337580554,1725849032799,-234.83214946,0.00014989,2]
[337580555,1725849032815,-500.0,0.00014989,2]
[337580556,1725849032831,-500.0,0.00014989,2]
[337580557,1725849032846,-500.0,0.00014989,2]
[337580558,1725849032861,-500.0,0.00014989,2]
[337580559,1725849032876,-500.0,0.00014989,2]
[337580560,1725849032892,-500.0,0.00014989,2]
[337580561,1725849032908,-500.0,0.00014989,2]
[337580562,1725849032925,-502.47090052,0.00014989,2]
[337580563,1725849032941,-244.02985243,0.00014989,2]
[337580564,1725849032957,-500.0,0.00014989,2]
[337580565,1725849032973,-500.0,0.00014989,2]
[337580566,1725849032989,-500.0,0.00014989,2]
[337580567,1725849033004,-500.0,0.00014989,2]
[337580568,1725849033020,-500.0,0.00014989,2]
[337580569,1725849033037,-500.0,0.00014989,2]
[337580570,1725849033052,-500.0,0.00014989,2]
[337580571,1725849033068,-500.0,0.00014989,2]
[337580572,1725849033086,-500.0,0.00014989,2]
[337580573,1725849033102,-500.0,0.00014989,2]
[337580574,1725849033118,-500.0,0.00014989,2]
[337580575,1725849033133,-500.0,0.00014989,2]
[337580576,1725849033151,-500.0,0.00014989,2]
[337580577,1725849033168,-500.0,0.00014989,2]
[337580578,1725849033184,-500.0,0.00014989,2]
[337580579,1725849033200,-500.0,0.00014989,2]
[337580580,1725849033217,-500.0,0.00014989,2]
[337580581,1725849033233,-500.0,0.00014989,2]
[337580582,1725849033248,-500.0,0.00014989,2]
[337580583,1725849033264,-500.0,0.00014989,2]
[337580584,1725849033280,-538.37218005,0.00014989,2]
[337580585,1725849033295,-500.0,0.00014989,2]
[337580586,1725849033311,-500.0,0.00014989,2]
[337580587,1725849033326,-500.0,0.00014989,2]
[337580588,1725849033342,-242779.667337,0.0001499,3]
[337580589,1725849033357,-46699.27236724,0.0001499,3]
[337580590,1725849033377,-669.94125223,0.0001499,3]
[337580591,1725849033395,-18698.31203307,0.0001499,3]
[337580592,1725849033413,-2999.0,0.0001499,3]
[337580593,1725849033432,-13024.37793672,0.0001499,3]
[337580594,1725849033451,-2563.80281222,0.0001499,3]
[337580595,1725849033469,-7011.24858087,0.0001499,3]
[337580596,1725849033566,-5244.99412452,0.0001499,3]
[337580597,1725849033586,-387.02289021,0.0001499,3]
[337580598,1725849033603,-13790.59481179,0.0001499,3]
[337580599,1725849033621,-2131.03440012,0.0001499,3]
[337580600,1725849033639,-55603.33183412,0.0001499,3]
[337580601,1725849033657,-65624.35408289,0.0001499,3]
[337580602,1725849033672,-1676.08726005,0.0001499,2]
[337580603,1725849033690,-1676.08726005,0.0001499,2]
[337580604,1725849033704,-722.1337233,0.00014993,2]
[337580605,1725849033719,-2622.8359001,0.00014993,2]
[337580606,1725849033734,-1307.4571122,0.00014998,2]
[337580607,1725849033750,-387.7362718,0.00014998,2]
[337580608,1725849033764,-40197.9843773,0.00014998,2]
[337580609,1725849033780,-230.4951241,0.00014998,2]
[337580610,1725849033795,-3971.8990866,0.00014998,2]
[337580611,1725849033811,-1830.71752221,0.00015,2]
[337580612,1725849033824,-19713.28435518,0.00015,2]
[337580613,1725849033842,-4834.22067467,0.00015,2]
[337580614,1725849033860,-609.67999998,0.00015,2]
[337580615,1725849033879,-521.124372,0.00015,2]
[337580616,1725849033897,-595.5625,0.00015,2]
[337580617,1725849033914,-285.104709,0.00015,2]
[337580618,1725849033932,-28443.27290558,0.00015,2]
[337580619,1725849033951,-13698.38536391,0.00015,2]
[337580620,1725849033968,-684.71908266,0.00015,2]
[337580621,1725849033986,-2053.25173375,0.00015,2]
[337580622,1725849034003,-270.26587227,0.00015,2]
[337580623,1725849034021,-502.90722895,0.00015,2]
[337580624,1725849034039,-1157.16,0.00015,2]
[337580625,1725849034058,-996.5840164,0.00015,2]
[337580626,1725849034076,-251.03914311,0.00015,2]
[337580627,1725849034095,-315.81192629,0.00015,2]
[337580628,1725849034114,-535.8515108,0.00015,2]
[337580629,1725849034132,-1936.87128191,0.00015,2]
[337580630,1725849034159,-3686.99397903,0.00015,2]
[337580631,1725849034178,-516.47725402,0.00015,2]
[337580635,1725849037597,-663.976228,0.0001335,2]
[337580638,1725849037612,-250.0,0.00013634,2]
[337580640,1725849037627,-833.86,0.00013634,2]
[337580642,1725849037641,-150.521,0.000138,2]
[337580643,1725849037657,-1032.44392381,0.000149,2]
[337580644,1725849037672,-37.24884819,0.00015,2]
[337580645,1725849037719,-356.503108,0.00015,2]
[337580646,1725849037736,-313.999999,0.00015,2]
[337580647,1725849037754,-1849.01762945,0.00015,2]
[337580648,1725849037770,-7005.28396638,0.00015,2]
[337580649,1725849037789,-4888.27761967,0.00015,2]
[337580650,1725849037808,-2687.2050979,0.00015,2]
[337580651,1725849037846,-7457.2856901,0.00015,2]
[337580652,1725849037862,-2740.23574316,0.00015,2]
[337580653,1725849037878,-1114.47748706,0.00015,2]
[337580654,1725849037894,-329.77759271,0.00015,2]
[337580655,1725849037966,-815.0,0.00015,2]
[337580656,1725849037982,-53876.16940001,0.00015,2]
[337580657,1725849037998,-2730.40354718,0.00015,2]
[337580658,1725849038015,-1194.1931649,0.00015,2]
[337580662,1725849039727,-2403.43,0.0001498,2]
[337580664,1725849039744,-2403.43,0.0001498,2]
[337580666,1725849039759,-566.73318804,0.0001498,2]
[337580667,1725849039775,-551.58592,0.0001498,2]
[337580668,1725849039792,-504.152,0.0001498,2]
[337580691,1725849042183,-780.95889196,0.0001498,2]
[337580692,1725849042195,-6273.87807642,0.00015,2]
[337580693,1725849042221,-1367.59375518,0.0001498,2]
[337580694,1725849042232,-1035.83624482,0.0001498,2]
[337580695,1725849042242,-40789.05484321,0.00015,2]
[337580696,1725849042253,-509174.3149819,0.00015,2]
[337580697,1725849042265,-321864.63286503,0.00015,2]
[337580698,1725849042276,-1730.84596,0.00015,2]
[337580699,1725849042400,-17.2403356,0.0001498,2]
[337580700,1725849042411,-2386.1896644,0.0001498,2]
[337580701,1725849042420,-4926.70491081,0.00015,2]
[337580702,1725849042431,-253.44497898,0.00015,2]
[337580703,1725849042442,-556.86577081,0.00015,2]
[337580719,1725849042803,-639.839,0.000138,2]
[337580720,1725849042812,-4652.65873601,0.00015,2]
[337580721,1725849042823,-418.99714796,0.00015,2]
[337580722,1725849042869,-3563.9999998,0.00015,2]
[337580730,1725849045853,-152.9,0.0001498,2]
[337580731,1725849045862,-16373.3,0.00015,2]
[337580732,1725849125025,1199.0,0.00028,120]
[337580733,1725849989212,407.77,0.00011904,2]